fUST/lending_fUST_20251020
["ID","MTS","AMOUNT","RATE_DAILY","PERIOD"]
[391842629,1760905848677,-683.942025,0.00024402,7]
[391842630,1760905848687,-683.942025,0.00024402,7]
[391842631,1760905848697,-2534.715689,0.00024402,7]
[391842632,1760905848707,-683.942025,0.00024402,7]
[391842633,1760905848719,-2534.715689,0.00024402,7]
[391842634,1760905848730,-151.0,0.00024402,7]
[391842635,1760905848739,-151.409523,0.00024402,7]
[391842636,1760905848748,-683.942025,0.00024402,7]
[391842637,1760905848757,-2534.715689,0.00024402,7]
[391842638,1760905848767,-683.942025,0.00024402,7]
[391842639,1760905848779,-2534.715689,0.00024402,7]
[391842640,1760905848789,-683.942025,0.00024402,7]
[391842641,1760905848799,-2534.715689,0.00024402,7]
[391842642,1760905848809,-683.942028,0.00024402,7]
[391842643,1760905848820,-2534.715689,0.00024402,7]
[391842644,1760905848830,-2534.715689,0.00024402,7]
[391842645,1760905848839,-2534.71569159,0.00024402,7]
[391842646,1760905848849,-338.255674,0.00024402,7]
[391842647,1760905848859,-338.255674,0.00024402,7]
[391842648,1760905848868,-338.255674,0.00024402,7]
[391842649,1760905848877,-338.255674,0.00024402,7]
[391842650,1760905848887,-151.0,0.00024402,7]
[391842651,1760905848897,-151.0,0.00024402,7]
[391842652,1760905848906,-338.255674,0.00024402,7]
[391842653,1760905848915,-338.255674,0.00024402,7]
[391842654,1760905848925,-338.255674,0.00024402,7]
[391842655,1760905848934,-338.25568,0.00024402,7]
[391842656,1760905848944,-151.0,0.00024402,7]
[391842657,1760905848954,-151.0,0.00024402,7]
[391842658,1760905848963,-3803.00439142,0.00024426,2]
[391842659,1760905848973,-320.125359,0.00024463,7]
[391842660,1760905848983,-151.0,0.00024463,7]
[391842661,1760905848992,-320.125359,0.00024463,7]
[391842662,1760905849001,-151.0,0.00024463,7]
[391842663,1760905849011,-151.0,0.00024463,7]
[391842664,1760905849020,-320.125359,0.00024463,7]
[391842665,1760905849029,-320.125357,0.00024463,7]
[391842666,1760905849039,-151.0,0.00024463,7]
[391842667,1760905849048,-151.0,0.00024463,7]
[391842668,1760905849058,-285.598368,0.00024463,7]
[391842669,1760905849068,-285.598368,0.00024463,7]
[391842670,1760905849077,-285.598368,0.00024463,7]
[391842671,1760905849086,-285.598376,0.00024463,7]
[391842672,1760905849095,-151.0,0.00024473,7]
[391842673,1760905849105,-151.0,0.00024473,7]
[391842674,1760905849114,-151.0,0.00024473,7]
[391842675,1760905849123,-151.0,0.00024473,7]
[391842676,1760905849133,-151.0,0.00024473,7]
[391842677,1760905849143,-3803.00439142,0.00024551,2]
[391842678,1760905849152,-43426.06536603,0.0002465,2]
[391842679,1760905849162,-311.9424352,0.00024658,2]
[391842680,1760905849171,-500.0,0.00024676,2]
[391842681,1760905849180,-3803.00439142,0.00024676,2]
[391842682,1760905849189,-636.74923369,0.0002468,2]
[391842683,1760905849199,-422.185985,0.0002468,2]
[391842684,1760905849208,-151.0,0.00024699,7]
[391842685,1760905849218,-151.0,0.00024699,7]
[391842686,1760905849228,-276.472622,0.00024699,7]
[391842687,1760905849239,-184.659614,0.00024699,7]
[391842688,1760905849248,-184.659614,0.00024699,7]
[391842689,1760905849258,-184.659614,0.00024699,7]
[391842690,1760905849267,-151.0,0.00024699,7]
[391842691,1760905849276,-184.659614,0.00024699,7]
[391842692,1760905849285,-151.0,0.00024699,7]
[391842693,1760905849294,-151.0,0.00024699,7]
[391842694,1760905849303,-151.0,0.00024699,7]
[391842695,1760905849377,-151.0,0.00024699,7]
[391842696,1760905849386,-151.0,0.00024699,7]
[391842697,1760905849395,-151.0,0.00024699,7]
[391842698,1760905849405,-151.0,0.00024699,7]
[391842699,1760905849417,-151.0,0.00024699,7]
[391842700,1760905849427,-151.0,0.00024699,7]
[391842701,1760905849437,-151.0,0.00024699,7]
[391842702,1760905849446,-151.0,0.00024699,7]
[391842703,1760905849456,-151.0,0.00024699,7]
[391842704,1760905849465,-151.0,0.00024724,7]
[391842705,1760905849473,-151.0,0.00024724,7]
[391842706,1760905849482,-151.0,0.00024724,7]
[391842707,1760905849491,-151.0,0.00024724,7]
[391842708,1760905849500,-154.981293,0.00024724,7]
[391842709,1760905849509,-151.0,0.00024724,7]
[391842710,1760905849519,-151.0,0.00024724,7]
[391842711,1760905849528,-151.0,0.00024724,7]
[391842712,1760905849536,-151.0,0.0002475,7]
[391842713,1760905849545,-151.0,0.0002475,7]
[391842714,1760905849554,-184.659614,0.0002475,7]
[391842715,1760905849563,-184.659614,0.0002475,7]
[391842716,1760905849572,-184.659614,0.0002475,7]
[391842717,1760905849582,-151.0,0.0002475,7]
[391842718,1760905849591,-184.659614,0.0002475,7]
[391842719,1760905849599,-151.0,0.0002475,7]
[391842720,1760905849609,-151.0,0.0002475,7]
[391842721,1760905849618,-151.0,0.0002475,7]
[391842722,1760905849629,-151.0,0.0002475,7]
[391842723,1760905849639,-151.0,0.0002475,7]
[391842724,1760905849648,-188.802062,0.0002475,7]
[391842725,1760905849660,-151.0,0.0002475,7]
[391842726,1760905849670,-151.0,0.0002475,7]
[391842727,1760905849680,-242.009516,0.0002475,7]
[391842728,1760905849689,-151.0,0.0002475,7]
[391842729,1760905849699,-151.0,0.0002475,7]
[391842730,1760905849709,-500.0,0.00024773,2]
[391842731,1760905849722,-500.0,0.00024773,2]
[391842732,1760905849731,-500.0,0.00024773,2]
[391842733,1760905849740,-500.0,0.00024773,2]
[391842734,1760905849749,-500.0,0.00024773,2]
[391842735,1760905849758,-500.0,0.00024773,2]
[391842736,1760905849767,-500.0,0.00024773,2]
[391842737,1760905849777,-500.0,0.00024773,2]
[391842738,1760905849786,-500.0,0.00024773,2]
[391842739,1760905849796,-500.81397807,0.00024773,2]
[391842740,1760905849808,-500.0,0.00024773,2]
[391842741,1760905849818,-561.33025086,0.00024773,2]
[391842742,1760905849828,-500.0,0.00024773,2]
[391842743,1760905849837,-500.0,0.00024773,2]
[391842744,1760905849848,-500.0,0.00024773,2]
[391842745,1760905849857,-500.0,0.00024773,2]
[391842746,1760905849866,-500.0,0.00024773,2]
[391842747,1760905849876,-500.0,0.00024773,2]
[391842748,1760905849886,-500.48655463,0.00024773,2]
[391842749,1760905849895,-500.0,0.00024773,2]
[391842750,1760905849904,-500.0,0.00024773,2]
[391842751,1760905849914,-500.0,0.00024773,2]
[391842752,1760905849923,-500.0,0.00024773,2]
[391842753,1760905849932,-500.0,0.00024773,2]
[391842754,1760905849942,-500.0,0.00024773,2]
[391842755,1760905849952,-500.95593531,0.00024773,2]
[391842756,1760905849961,-500.0,0.00024773,2]
[391842757,1760905849971,-500.0,0.00024773,2]
[391842758,1760905849981,-500.0,0.00024773,2]
[391842759,1760905849991,-500.0,0.00024773,2]
[391842760,1760905850001,-500.0,0.00024773,2]
[391842761,1760905850010,-265.92432032,0.00024773,2]
[391842762,1760905850020,-500.0,0.00024773,2]
[391842763,1760905850029,-500.0,0.00024773,2]
[391842764,1760905850038,-500.0,0.00024773,2]
[391842765,1760905850047,-310.80399402,0.00024773,2]
[391842766,1760905850056,-500.0,0.00024773,2]
[391842767,1760905850066,-342.75447664,0.00024773,2]
[391842768,1760905850076,-151.0,0.00024773,7]
[391842769,1760905850087,-151.0,0.00024773,7]
[391842770,1760905850098,-151.0,0.00024773,7]
[391842771,1760905850108,-151.0,0.00024773,7]
[391842772,1760905850118,-151.0,0.00024773,7]
[391842773,1760905850128,-500.0,0.00024786,10]
[391842774,1760905850139,-519.0,0.00024786,10]
[391842775,1760905850149,-500.0,0.00024786,10]
[391842776,1760905850159,-151.0,0.00024786,2]
[391842777,1760905850169,-151.0,0.00024786,10]
[391842778,1760905850179,-151.0,0.00024795,7]
[391842779,1760905850190,-151.0,0.00024795,7]
[391842780,1760905850199,-151.0,0.00024795,7]
[391842781,1760905850209,-151.0,0.00024795,7]
[391842782,1760905850221,-184.659614,0.00024795,7]
[391842783,1760905850231,-184.659614,0.00024795,7]
[391842784,1760905850242,-184.659614,0.00024795,7]
[391842785,1760905850251,-184.659614,0.00024795,7]
[391842786,1760905850263,-184.659614,0.00024795,7]
[391842787,1760905850273,-184.659614,0.00024795,7]
[391842788,1760905850283,-151.0,0.00024795,7]
[391842789,1760905850293,-151.0,0.00024795,7]
[391842790,1760905850303,-184.659614,0.00024795,7]
[391842791,1760905850314,-184.659614,0.00024795,7]
[391842792,1760905850325,-151.0,0.00024795,7]
[391842793,1760905850334,-151.0,0.00024795,7]
[391842794,1760905850343,-151.0,0.00024795,7]
[391842795,1760905850352,-151.0,0.00024795,7]
[391842796,1760905850361,-151.0,0.00024795,7]
[391842797,1760905850370,-151.0,0.00024795,7]
[391842798,1760905850379,-500.0,0.00024795,5]
[391842799,1760905850388,-151.0,0.00024796,7]
[391842800,1760905850398,-151.0,0.00024796,7]
[391842801,1760905850407,-151.0,0.00024796,7]
[391842802,1760905850416,-151.0,0.00024796,7]
[391842803,1760905850425,-151.0,0.00024796,7]
[391842804,1760905850434,-151.0,0.00024796,7]
[391842805,1760905850444,-151.0,0.00024796,7]
[391842806,1760905850454,-168.677236,0.00024796,7]
[391842807,1760905850464,-168.677236,0.00024796,7]
[391842808,1760905850474,-168.677236,0.00024796,7]
[391842809,1760905850485,-168.677236,0.00024796,7]
[391842810,1760905850494,-151.0,0.00024796,7]
[391842811,1760905850503,-151.0,0.00024796,7]
[391842812,1760905850513,-151.0,0.00024796,7]
[391842813,1760905850523,-151.0,0.00024796,7]
[391842814,1760905850595,-220.602863,0.00024796,7]
[391842815,1760905850606,-151.0,0.00024796,7]
[391842816,1760905850616,-151.0,0.00024796,7]
[391842817,1760905850626,-236.951638,0.00024796,7]
[391842818,1760905850636,-151.0,0.00024796,7]
[391842819,1760905850646,-151.0,0.00024796,7]
[391842820,1760905850655,-151.0,0.00024796,7]
[391842821,1760905850664,-151.0,0.00024796,7]
[391842822,1760905850673,-151.0,0.00024796,7]
[391842823,1760905850683,-151.0,0.00024796,7]
[391842824,1760905850692,-152.157809,0.00024796,7]
[391842825,1760905850701,-151.0,0.00024796,7]
[391842826,1760905850710,-151.0,0.00024796,7]
[391842827,1760905850722,-151.0,0.00024796,7]
[391842828,1760905850731,-151.0,0.00024796,7]
[391842829,1760905850741,-151.0,0.00024796,7]
[391842830,1760905850749,-151.0,0.00024796,7]
[391842831,1760905850759,-151.0,0.00024796,7]
[391842832,1760905850768,-301.99999999,0.00024796,7]
[391842833,1760905850778,-151.0,0.00024796,7]
[391842834,1760905850788,-151.0,0.00024796,7]
[391842835,1760905850798,-151.0,0.00024796,7]
[391842836,1760905850807,-151.0,0.00024796,7]
[391842837,1760905850817,-153.187222,0.00024796,7]
[391842838,1760905850826,-214.539902,0.00024796,7]
[391842839,1760905850835,-151.0,0.00024796,7]
[391842840,1760905850844,-151.0,0.00024796,7]
[391842841,1760905850854,-151.0,0.00024796,2]
[391842842,1760905850863,-262.26116938,0.00024796,2]
[391842843,1760905850873,-151.0,0.00024796,7]
[391842844,1760905850883,-151.0,0.00024796,7]
[391842845,1760905850892,-151.0,0.00024796,7]
[391842846,1760905850901,-151.0,0.00024796,7]
[391842847,1760905850911,-151.0,0.00024796,7]
[391842848,1760905850920,-151.0,0.00024796,7]
[391842849,1760905850929,-151.0,0.00024796,7]
[391842850,1760905850939,-151.0,0.00024796,7]
[391842851,1760905850948,-151.0,0.00024796,7]
[391842852,1760905850958,-151.0,0.00024796,7]
[391842853,1760905850967,-151.0,0.00024796,7]
[391842854,1760905850976,-151.0,0.00024796,7]
[391842855,1760905850986,-151.0,0.00024796,7]
[391842856,1760905850995,-151.0,0.00024796,7]
[391842857,1760905851004,-151.0,0.00024796,7]
[391842858,1760905851013,-153.434574,0.00024796,7]
[391842859,1760905851022,-151.0,0.00024796,7]
[391842860,1760905851031,-151.0,0.00024796,7]
[391842861,1760905851040,-151.0,0.00024796,7]
[391842862,1760905851049,-151.0,0.00024796,7]
[391842863,1760905851058,-151.0,0.00024796,7]
[391842864,1760905851067,-151.0,0.00024796,7]
[391842865,1760905851076,-151.0,0.00024796,7]
[391842866,1760905851086,-196.410191,0.00024796,7]
[391842867,1760905851095,-151.0,0.00024796,7]
[391842868,1760905851105,-153.264985,0.00024796,7]
[391842869,1760905851114,-151.0,0.00024796,7]
[391842870,1760905851124,-184.659614,0.00024796,7]
[391842871,1760905851133,-184.659614,0.00024796,7]
[391842872,1760905851143,-184.659614,0.00024796,7]
[391842873,1760905851153,-184.659604,0.00024796,7]
[391842874,1760905851162,-402.86590842,0.00024796,7]
[391842875,1760905851171,-151.0,0.00024796,7]
[391842876,1760905851180,-151.0,0.00024796,7]
[391842877,1760905851189,-151.0,0.00024796,7]
[391842878,1760905851198,-348.2680644,0.00024796,7]
[391842879,1760905851207,-151.0,0.00024796,2]
[391842880,1760905851216,-151.0,0.00024796,2]
[391842881,1760905851226,-151.0,0.00024796,2]
[391842882,1760905851235,-151.0,0.00024796,2]
[391842883,1760905851244,-151.0,0.00024796,2]
[391842884,1760905851253,-151.0,0.00024796,2]
[391842885,1760905851262,-207.40998715,0.00024796,2]
[391842886,1760905851271,-151.0,0.00024796,2]
[391842887,1760905851300,-500.0,0.00024796,2]
[391842888,1760905851310,-151.0,0.00024796,2]
[391842889,1760905851319,-284.87523743,0.00024796,2]
[391842890,1760905851328,-151.0,0.00024796,2]
[391842891,1760905851338,-200.0,0.00024799,2]
[391842892,1760905851347,-151.0,0.00024799,7]
[391842893,1760905851357,-151.0,0.00024799,7]
[391842894,1760905851366,-151.0,0.00024799,7]
[391842895,1760905851375,-151.0,0.00024799,7]
[391842896,1760905851384,-151.0,0.00024799,7]
[391842897,1760905851393,-151.0,0.00024799,7]
[391842898,1760905851402,-200.0,0.00024799,7]
[391842899,1760905851411,-151.0,0.00024799,7]
[391842900,1760905851420,-151.0,0.00024799,7]
[391842901,1760905851429,-20276.183776,0.000248,2]
[391842902,1760905851438,-151.0,0.000248,7]
[391842903,1760905851447,-151.0,0.000248,7]
[391842904,1760905851456,-151.0,0.000248,7]
[391842905,1760905851465,-151.0,0.000248,7]
[391842906,1760905851475,-152.361544,0.000248,7]
[391842907,1760905851484,-151.0,0.000248,7]
[391842908,1760905851494,-151.0,0.000248,7]
[391842909,1760905851503,-255.960722,0.000248,7]
[391842910,1760905851512,-151.0,0.000248,7]
[391842911,1760905851522,-151.0,0.000248,7]
[391842912,1760905851531,-151.0,0.000248,7]
[391842913,1760905851540,-11990.3895904,0.000248,2]
[391842914,1760905851549,-3803.00439142,0.00024801,2]
[391842915,1760905851558,-151.0,0.00024808,2]
[391842916,1760905851567,-151.0,0.00024808,2]
[391842917,1760905851578,-151.0,0.00024808,2]
[391842918,1760905851587,-151.0,0.00024808,2]
[391842919,1760905851596,-151.0,0.00024808,2]
[391842920,1760905851606,-151.0,0.00024808,2]
[391842921,1760905851615,-151.0,0.00024808,2]
[391842922,1760905851624,-158.46588529,0.00024808,2]
[391842923,1760905851633,-151.0,0.00024827,7]
[391842924,1760905851703,-151.0,0.00024827,7]
[391842925,1760905851715,-151.0,0.00024827,7]
[391842926,1760905851725,-239.925448,0.00024827,7]
[391842927,1760905851735,-151.0,0.00024827,7]
[391842928,1760905851745,-151.0,0.00024827,7]
[391842929,1760905851759,-168.677236,0.00024827,7]
[391842930,1760905851768,-168.677236,0.00024827,7]
[391842931,1760905851778,-168.677236,0.00024827,7]
[391842932,1760905851789,-168.677236,0.00024827,7]
[391842933,1760905851801,-151.0,0.00024827,7]
[391842934,1760905851812,-151.0,0.00024827,7]
[391842935,1760905851821,-151.0,0.00024827,7]
[391842936,1760905851830,-151.0,0.00024827,7]
[391842937,1760905851839,-151.0,0.00024827,7]
[391842938,1760905851849,-151.0,0.00024827,7]
[391842939,1760905851858,-182.074276,0.00024827,7]
[391842940,1760905851867,-151.0,0.00024827,7]
[391842941,1760905851877,-500.0,0.00024841,10]
[391842942,1760905851886,-519.0,0.00024841,10]
[391842943,1760905851895,-37.35475236,0.00024841,10]
[391842944,1760905852074,-462.64524764,0.00024841,10]
[391842945,1760905852085,-151.0,0.00024841,10]
[391842946,1760905852094,-326.4867849,0.00024843,2]
[391842947,1760905852103,-151.0,0.00024851,2]
[391842948,1760905852112,-153.80326083,0.00024851,2]
[391842949,1760905852122,-151.0,0.00024851,2]
[391842950,1760905852131,-151.0,0.00024851,2]
[391842951,1760905852140,-500.0,0.00024851,2]
[391842952,1760905852149,-151.0,0.00024851,2]
[391842953,1760905852158,-2398.07791807,0.00024855,2]
[391842954,1760905852168,-151.0,0.00024855,7]
[391842955,1760905852177,-151.0,0.00024855,7]
[391842956,1760905852187,-151.0,0.00024855,7]
[391842957,1760905852198,-151.0,0.00024855,7]
[391842958,1760905852207,-151.0,0.00024855,7]
[391842959,1760905852216,-168.677236,0.00024855,7]
[391842960,1760905852226,-168.677236,0.00024855,7]
[391842961,1760905852237,-168.677236,0.00024855,7]
[391842962,1760905852246,-168.677236,0.00024855,7]
[391842963,1760905852255,-151.0,0.00024855,7]
[391842964,1760905852264,-151.0,0.00024855,7]
[391842965,1760905852273,-151.0,0.00024855,7]
[391842966,1760905852282,-151.0,0.00024855,7]
[391842967,1760905852291,-251.617197,0.00024855,7]
[391842968,1760905852301,-151.0,0.00024856,7]
[391842969,1760905852310,-151.0,0.00024856,7]
[391842970,1760905852320,-151.0,0.00024856,7]
[391842971,1760905852329,-151.0,0.00024856,7]
[391842972,1760905852339,-168.677236,0.00024856,7]
[391842973,1760905852349,-168.677236,0.00024856,7]
[391842974,1760905852358,-168.677236,0.00024856,7]
[391842975,1760905852369,-168.677236,0.00024856,7]
[391842976,1760905852378,-151.0,0.00024856,7]
[391842977,1760905852387,-151.0,0.00024859,7]
[391842978,1760905852396,-151.0,0.00024859,7]
[391842979,1760905852405,-151.0,0.00024859,7]
[391842980,1760905852414,-151.0,0.00024859,7]
[391842981,1760905852422,-151.0,0.00024859,7]
[391842982,1760905852497,-151.0,0.00024859,7]
[391842983,1760905852506,-151.0,0.00024859,7]
[391842984,1760905852515,-151.0,0.00024859,7]
[391842985,1760905852524,-151.0,0.00024859,7]
[391842986,1760905852533,-151.0,0.00024859,7]
[391842987,1760905852543,-168.677236,0.00024859,7]
[391842988,1760905852551,-168.677236,0.00024859,7]
[391842989,1760905852562,-168.677236,0.00024859,7]
[391842990,1760905852572,-168.677246,0.00024859,7]
[391842991,1760905852581,-151.0,0.00024859,7]
[391842992,1760905852591,-151.0,0.00024861,7]
[391842993,1760905852602,-151.0,0.00024861,7]
[391842994,1760905852612,-151.0,0.00024861,7]
[391842995,1760905852621,-151.0,0.00024862,7]
[391842996,1760905852632,-151.0,0.00024862,7]
[391842997,1760905852643,-266.184451,0.00024862,7]
[391842998,1760905852653,-151.0,0.00024862,7]
[391842999,1760905852661,-151.0,0.00024862,7]
[391843000,1760905852671,-153.365986,0.00024862,7]
[391843001,1760905852679,-151.0,0.00024862,7]
[391843002,1760905852688,-151.0,0.00024862,7]
[391843003,1760905852698,-151.0,0.00024862,7]
[391843004,1760905852710,-301.999999,0.00024862,7]
[391843005,1760905852722,-151.0,0.00024862,7]
[391843006,1760905852731,-151.0,0.00024863,7]
[391843007,1760905852740,-151.0,0.00024863,7]
[391843008,1760905852751,-151.0,0.00024863,7]
[391843009,1760905852762,-151.0,0.00024863,7]
[391843010,1760905852773,-151.0,0.00024863,7]
[391843011,1760905852782,-500.0,0.00024864,2]
[391843012,1760905852791,-500.0,0.00024864,2]
[391843013,1760905852800,-500.0,0.00024864,2]
[391843014,1760905852810,-502.58969274,0.00024864,2]
[391843015,1760905852819,-151.0,0.00024865,7]
[391843016,1760905852829,-151.0,0.00024865,2]
[391843017,1760905852838,-151.0,0.00024865,2]
[391843018,1760905852847,-500.0,0.00024865,2]
[391843019,1760905852857,-500.0,0.00024865,2]
[391843020,1760905852866,-394.71766529,0.00024865,2]
[391843021,1760905852875,-152.27799145,0.00024865,2]
[391843022,1760905852884,-153.54151299,0.00024865,2]
[391843023,1760905852893,-8600.82696096,0.00024866,2]
[391843024,1760905852903,-497.47248426,0.00024873,2]
[391843025,1760905852912,-500.0,0.00024873,2]
[391843026,1760905852921,-500.0,0.00024873,2]
[391843027,1760905852932,-500.0,0.00024873,2]
[391843028,1760905852941,-500.0,0.00024873,2]
[391843029,1760905852950,-603.07884533,0.00024873,2]
[391843030,1760905852960,-500.0,0.00024873,2]
[391843031,1760905852969,-500.0,0.00024877,2]
[391843032,1760905852978,-202.86660763,0.00024878,2]
[391843033,1760905852987,-500.0,0.00024878,2]
[391843034,1760905852996,-21698.1471144,0.00024879,2]
[391843035,1760905853006,-666.0,0.00024879,2]
[391843036,1760905853016,-500.0,0.00024896,10]
[391843037,1760905853025,-519.0,0.00024896,10]
[391843038,1760905853035,-500.0,0.00024896,10]
[391843039,1760905853045,-151.0,0.00024896,10]
[391843040,1760905853054,-160.74874242,0.00024899,2]
[391843041,1760905853064,-201.16558939,0.00024899,2]
[391843042,1760905853073,-18231.06643395,0.000249,2]
[391843045,1760905950992,152.2,0.00024142,2]
[391843046,1760906001750,341.2102991,0.00024057,2]
[391843047,1760906003363,614.17853837,0.00024057,2]
[391843048,1760906004887,1091.87295711,0.00024057,2]
[391843049,1760906006730,268.73946171,0.00024057,2]
[391843050,1760906006753,1437.31203377,0.00024057,2]
[391843051,1760906008526,2456.71415349,0.00024057,2]
[391843052,1760906012257,2050.22277232,0.00023774,5]
[391843055,1760906066438,835.76800603,0.00034256,120]
[391843056,1760906114399,509.48724768,0.00024057,2]
[391843057,1760906116350,917.07704583,0.00024057,2]
[391843058,1760906118399,1630.35919259,0.00024057,2]
[391843059,1760906142384,463.323844,0.00023693,2]
[391843060,1760906155559,4849.09624682,0.00024142,2]
[391843062,1760906162546,164.87466836,0.00023765,5]
[391843063,1760906164829,166.80209885,0.00023765,5]
[391843064,1760906232699,727.32,0.00024142,2]
[391843109,1760906280207,151.17,0.00015984,2]
[391843110,1760906280517,151.16,0.00015984,2]
[391843111,1760906308106,269.33965587,0.00023446,2]
[391843112,1760906308128,1017.78670158,0.00023446,2]
[391843113,1760906316151,228.06867903,0.00023774,5]
[391843114,1760906415958,253.28962998,0.00023068,2]
[391843116,1760906512758,2147.80195738,0.00024141,2]
[391843117,1760906544483,699.042486,0.00034249,120]
[391843118,1760906555621,2261.658925,0.00023434,2]
[391843119,1760906560249,178.75315565,0.00024142,2]
[391843120,1760906589022,533.08356491,0.00024057,2]
[391843121,1760906590818,959.55041684,0.00024057,2]
[391843122,1760906593082,1705.86740772,0.00024057,2]
[391843123,1760906595147,2665.41782457,0.00024057,2]
[391843124,1760906598776,1695.67870531,0.00024057,2]
[391843125,1760906598799,2142.52296206,0.00024057,2]
[391843126,1760906706277,201.04314977,0.00024057,2]
[391843127,1760906708368,361.87766959,0.00024057,2]
[391843128,1760906712096,643.33807927,0.00024057,2]
[391843129,1760906736426,150.04902097,0.0002,2]
[391843131,1760906762677,6501.17911834,0.00023461,30]
[391843132,1760906762698,10000.01,0.00023461,30]
[391843133,1760906762720,10000.01,0.00023461,30]
[391843134,1760906762742,10000.01,0.00023461,30]
[391843135,1760906762763,10000.01,0.00023461,30]
[391843136,1760906762784,10000.01,0.00023461,30]
[391843137,1760906762805,10000.01,0.00023461,30]
[391843138,1760906762827,10000.01,0.00023461,30]
[391843139,1760906762849,10000.01,0.00023461,30]
[391843140,1760906762870,8498.74088166,0.00023461,30]
[391843141,1760906916409,500.0,0.0003425,60]
[391843142,1760906962129,499.99999999,0.0003425,60]
[391843143,1760907014186,388.06871877,0.00023774,5]
[391843179,1760907032072,-1726.89598739,0.00024172,2]
[391843181,1760907032082,-160.0,0.00024272,2]
[391843183,1760907032091,-150.0,0.00024299,2]
[391843185,1760907032101,-1200.0,0.00024372,2]
[391843187,1760907032111,-300.0,0.00024372,2]
[391843189,1760907032120,-300.0,0.00024372,2]
[391843191,1760907032130,-300.0,0.00024372,2]
[391843193,1760907032139,-300.0,0.00024372,2]
[391843195,1760907032149,-300.0,0.00024372,2]
[391843197,1760907032159,-1200.0,0.00024372,2]
[391843199,1760907032168,-502.34669803,0.00024373,2]
[391843200,1760907032177,-500.0,0.00024373,2]
[391843202,1760907032187,-391.07212958,0.00024373,2]
[391843204,1760907032197,-503.21226154,0.00024373,2]
[391843206,1760907032207,-506.1536803,0.00024373,2]
[391843208,1760907032216,-504.23378731,0.00024373,2]
[391843210,1760907032225,-508.11278191,0.00024373,2]
[391843212,1760907032234,-500.0,0.00024373,2]
[391843214,1760907032243,-500.0,0.00024373,2]
[391843216,1760907032253,-500.0,0.00024373,2]
[391843218,1760907032262,-500.62896371,0.00024373,2]
[391843220,1760907032272,-500.0,0.00024373,2]
[391843222,1760907032282,-500.0,0.00024373,2]
[391843223,1760907032291,-500.0,0.00024373,2]
[391843225,1760907032301,-500.0,0.00024373,2]
[391843227,1760907032310,-500.0,0.00024373,2]
[391843228,1760907032319,-500.0,0.00024373,2]
[391843229,1760907032332,-500.0,0.00024373,2]
[391843230,1760907032342,-50000.0,0.00024373,2]
[391843231,1760907032352,-500.0,0.000244,2]
[391843232,1760907032363,-621.74395474,0.000244,2]
[391843233,1760907032373,-1131.53310056,0.00024455,2]
[391843234,1760907032383,-500.0,0.00024473,2]
[391843235,1760907032394,-500.0,0.00024473,2]
[391843236,1760907032404,-500.0,0.00024473,2]
[391843237,1760907032414,-500.0,0.00024473,2]